Cogmind - Beta 12 @@@ ROGUE MODE // 2023.08.02 @ 18:44:36 Player: Cipherpunk Result: Destroyed by S-27 Virus with Autogun Performance ------------- Evolutions (3) 1500 Regions Visited (5) 1000 Robots Destroyed (50) 250 Value Destroyed (1159) 1159 Prototype IDs (2) 40 Alien Tech Used (0) 0 Bonus (14) 14 TOTAL SCORE: 3963 Bonus ------- High Alert Combat Kills 14 Cogmind --------- Core Integrity 0/700 Matter 300/300 Energy 99/100 System Corruption 1% Temperature Cool (0) Movement Core (50) Location -7/Storage Parts ------- > --- POWER (2) -------- (None) > --- PROPULSION (4) --- (None) > --- UTILITY (5) ------ (None) > --- WEAPON (2) ------- (None) > --- INVENTORY (5) ---- Advanced Weight Redist. System Trap Scanner Advanced ECM Suite Hacking Suite Great Axe Peak State ------------ > --- POWER ------------ Light Ion Engine > --- PROPULSION ------- Flight Unit Flight Unit Improved Flight Unit > --- UTILITY ---------- Transport Network Coupler Improved Melee Analysis Suite Improved Melee Analysis Suite Improved Melee Analysis Suite Improved Melee Analysis Suite > --- WEAPON ----------- Katana Great Axe > --- INVENTORY -------- Flight Unit Medium Storage Unit ECM Suite System Shield Great Axe [Rating: 31] Favorites ----------- Power Ion Engine Engine Ion Engine Power Core Light Nuclear Core Propulsion Aluminum Leg Leg Aluminum Leg Wheel Armored Wheel Flight Unit Flight Unit Utility Targeting Computer Device Weight Redist. System Storage Medium Storage Unit Processor Targeting Computer Protection Light Armor Plating Weapon Beam Cannon Energy Gun Beam Rifle Energy Cannon Beam Cannon Ballistic Gun Assault Rifle Impact Weapon Hammer Slashing Weapon Katana Build | -11 -10 -9 -8 -7 -7 ------- Run | Jun Mat Mat Mat Fac Sto Slots Evolved 6 | . . 2 2 2 . Power 1 | . . . . 1 . Propulsion 2 | . . . 1 1 . Utility 3 | . . 2 1 . . Weapon . | . . . . . . Parts Attached 81 | . 17 29 27 8 . Power 15 | . 2 8 3 2 . Engine 13 | . 2 7 3 1 . Core 2 | . . 1 . 1 . Reactor . | . . . . . . Propulsion 24 | . 7 6 9 2 . Treads . | . . . . . . Leg 8 | . 6 2 . . . Wheel 3 | . 1 2 . . . Hover . | . . . . . . Flight 13 | . . 2 9 2 . Utility 27 | . 4 8 12 3 . Device 8 | . . 2 4 2 . Storage 8 | . 3 3 2 . . Processor 9 | . 1 1 6 1 . Hackware . | . . . . . . Protection 2 | . . 2 . . . Artifact . | . . . . . . Weapon 15 | . 4 7 3 1 . Energy Gun 4 | . 1 3 . . . Energy Cannon 3 | . 2 1 . . . Ballistic Gun 3 | . 1 2 . . . Ballistic Cannon . | . . . . . . Launcher . | . . . . . . Special Weapon . | . . . . . . Impact Weapon 1 | . . 1 . . . Slashing Weapon 4 | . . . 3 1 . Piercing Weapon . | . . . . . . Special Melee Weapon . | . . . . . . Unidentified Prototypes 2 | . . 1 1 . . Parts Lost 37 | . 2 9 13 3 10 Power 6 | . . 2 1 2 1 Propulsion 17 | . 1 3 8 1 4 Utility 10 | . . 2 4 . 4 Weapon 4 | . 1 2 . . 1 Highest Loss Streak 12 | . 2 3 7 2 12 To Critical Strikes . | . . . . . . Average Slot Usage (%) 91 | . 98 92 72 87 39 Engine 10 | . 14 8 4 10 . Core 1 | . . 2 2 . 4 Leg 14 | . 25 6 . . . Wheel 4 | . 2 8 . . . Flight 6 | . . 3 23 29 5 Device 3 | . . 3 5 13 11 Storage 12 | . 14 12 7 7 1 Processor 16 | . 12 20 20 16 12 Protection 2 | . . 6 . . . Energy Gun 3 | . 1 6 . . . Energy Cannon 14 | . 24 8 . . . Ballistic Gun 1 | . 1 2 . . . Slashing Weapon 1 | . . . 5 7 3 Naked Turns 7 | . . . . . 7 Heaviest Build 91 | 11 91 56 19 22 19 Greatest Support 23 | 20 20 16 21 23 22 Greatest Overweight (x) 5 | . 5 5 . . . Average Overweight (x) . | . 1 2 . . . Largest Inventory Capacity 25 | 8 25 20 10 10 10 Average Capacity 12 | 8 11 17 7 10 6 Most Carried 20 | 6 14 20 10 10 9 Average Carried 10 | 6 9 14 5 8 6 Final Capacity 20 | 8 20 8 10 10 5 Final Carried 14 | 6 14 8 8 9 5 Class Distribution -------------------- 64% | Mutant 20% | Scavenger-Mutant 11% | Scavenger-Sprinter Dominant Class ---------------- Mutant | -10/Materials Scavenger-Mutant | -9/Materials Mutant | -8/Materials Scavenger-Sprinter | -7/Factory Mutant | -7/Storage Resources | -11 -10 -9 -8 -7 -7 ----------- Run | Jun Mat Mat Mat Fac Sto Matter Collected 987 | 200 214 289 235 49 . Remotely . | . . . . . . Salvage Created 1783 | . 888 672 174 49 . Parts 98 | . 49 31 12 6 . Haulers Intercepted 4 | . 2 1 1 . . Recyclers Shooed 6 | . 2 3 . . 1 Parts Field Recycled . | . . . . . . Retrieved Matter . | . . . . . . Parts Self-Destructed . | . . . . . . Prevented . | . . . . . . Kills | -11 -10 -9 -8 -7 -7 ------- Run | Jun Mat Mat Mat Fac Sto Combat Hostiles Destroyed 30 | . 14 11 5 . . Melee 5 | . . . 5 . . Guns 9 | . 2 7 . . . Cannons 16 | . 12 4 . . . Classes Destroyed 11 | . 6 3 1 1 . Worker 1 | . . . 1 . . Builder 1 | . 1 . . . . Tunneler 1 | . . . . 1 . Hauler 4 | . 2 1 1 . . Recycler 3 | . 2 1 . . . Operator 5 | . 2 2 . 1 . Watcher 5 | . 2 2 1 . . Swarmer 8 | . . 3 5 . . Grunt 17 | . 14 3 . . . Brawler 1 | . . 1 . . . Sentry 4 | . . 4 . . . Best Kill Streak 4 | . 3 3 4 1 . Combat Bots Only 3 | . 3 3 2 . . Max Kills in Single Turn 1 | . 1 1 1 1 . Gunslinging . | . . . . . . Exploded . | . . . . . . Melee 1 | . . . 1 . . Uniques/NPCs Destroyed . | . . . . . . Combat | -11 -10 -9 -8 -7 -7 -------- Run | Jun Mat Mat Mat Fac Sto Damage Taken 3853 | . 831 915 998 194 915 Core 1643 | . 158 245 526 40 674 Absorbed by Shields . | . . . . . . Core Remaining (%) 44 | 100 36 38 4 . . Volleys Fired 104 | . 51 53 . . . Largest 2 | . 2 2 . . . Hottest 120 | . 120 120 . . . Shots Fired 196 | . 101 95 . . . Gun 95 | . 36 59 . . . Cannon 101 | . 65 36 . . . Launcher . | . . . . . . Special . | . . . . . . Kinetic 39 | . 18 21 . . . Thermal 150 | . 78 72 . . . Explosive . | . . . . . . Electromagnetic 7 | . 5 2 . . . Robot Hit Streak 15 | . 15 12 . . . Robot Miss Streak 5 | . 5 4 . . . Penetration Max . | . . . . . . Secondary Targets . | . . . . . . Shots Hit Robots 155 | . 64 73 15 3 . Core Hits 61 | . 29 23 7 . 2 Critical Kills . | . . . . . . Critical Parts Destroyed 3 | . 1 2 . . . Critical Strikes 3 | . 1 2 . . . Destroy 1 | . 1 . . . . Smash 2 | . . 2 . . . Melee Attacks 56 | . . 20 28 6 2 Impact 33 | . . 20 13 . . Slashing 23 | . . . 15 6 2 Piercing . | . . . . . . Sneak Attacks 5 | . . 2 2 1 . Combat Hostiles . | . . . . . . Follow-up Attacks . | . . . . . . Damage Inflicted 3308 | . 1050 1247 776 192 43 Guns 858 | . 278 580 . . . Cannons 1213 | . 772 441 . . . Explosions . | . . . . . . Melee 1133 | . . 226 715 192 . Ramming 104 | . . . 61 . 43 Kinetic 321 | . 104 217 . . . Thermal 1653 | . 879 774 . . . Explosive . | . . . . . . Electromagnetic 97 | . 67 30 . . . Impact 325 | . . 226 99 . . Slashing 808 | . . . 616 192 . Piercing . | . . . . . . Highest Corruption 11 | . . . 11 . 1 Average Corruption 10 | . . . 11 . 1 Corruption Purged . | . . . . . . Corruption Blocked . | . . . . . . Effects 13 | . . . 13 . . Message Errors 2 | . . . 2 . . Matter Fused 3 | . . . 3 . . Heat Flow Errors 1 | . . . 1 . . Energy Discharges 1 | . . . 1 . . Data Loss (minor) 3 | . . . 3 . . Data Loss (major) 1 | . . . 1 . . Misdirections 2 | . . . 2 . . Overload Shots . | . . . . . . Overflow Damage 231 | . 13 79 32 107 . Projectiles 26 | . 13 13 . . . Explosions . | . . . . . . Melee 205 | . . 66 32 107 . Knockbacks 2 | . . 1 1 . . Impact 2 | . . 1 1 . . Kinetic . | . . . . . . Secondary . | . . . . . . Self-Inflicted Damage 279 | . 199 . 61 . 19 Shots 2 | . 2 . . . . Rammed 11 | . . . . . 11 Targets Rammed 11 | . . . . . 11 Kicked . | . . . . . . Crushed . | . . . . . . Highest Temperature 318 | . 229 318 275 . 1 Average Temperature 91 | . 81 99 155 . 1 Received Heat Transfer 1098 | . 384 264 207 51 192 Effects 3 | . 1 2 . . . Energy Bleed 1 | . 1 . . . . Interference 2 | . . 2 . . . Siege Activations . | . . . . . . Robots Corrupted . | . . . . . . Combat Hostiles . | . . . . . . Parts Fried 4 | . . 4 . . . Impact Corruptions 3 | . . 2 1 . . Robots Melted . | . . . . . . Combat Hostiles . | . . . . . . Parts Melted 1 | . . 1 . . . Heat Transferred 3652 | . 1876 1776 . . . Parts Sabotaged . | . . . . . . Parts Stolen . | . . . . . . Parts Stripped . | . . . . . . Power Chain Reactions . | . . . . . . Missiles Intercepted . | . . . . . . Alert | -11 -10 -9 -8 -7 -7 ------- Run | Jun Mat Mat Mat Fac Sto Peak Influence 1021 | . 217 193 1021 570 277 Initial 459 | . . 22 27 459 250 Average 160 | . 93 78 472 491 256 Maximum Alert Level 3 | . 1 . 3 2 1 Low Security (%) 79 | 100 91 100 25 . . Level 1 7 | . 8 . 20 . 100 Level 2 10 | . . . 22 100 . Level 3 3 | . . . 31 . . Level 4 . | . . . . . . Level 5 . | . . . . . . High Security . | . . . . . . Max Security . | . . . . . . Squads Dispatched 13 | . 4 2 4 2 1 Investigation 4 | . 2 1 1 . . Extermination 1 | . . . . 1 . Reinforcement 8 | . 2 1 3 1 1 Assault . | . . . . . . Garrison . | . . . . . . Intercept . | . . . . . . Searches Triggered . | . . . . . . Construction Impeded . | . . . . . . Haulers Reinforced . | . . . . . . Active Scanning Responses . | . . . . . . Cargo Convoy Interrupts . | . . . . . . Stealth | -11 -10 -9 -8 -7 -7 --------- Run | Jun Mat Mat Mat Fac Sto Distress Signals 4 | . 3 . . . 1 Communications Jammed . | . . . . . . Distress Signals . | . . . . . . Times Spotted 146 | . 24 22 68 14 18 Peak Tracking Total 21 | . 3 4 21 8 20 Tactical Retreats 19 | . 2 . 15 2 . Traps | -11 -10 -9 -8 -7 -7 ------- Run | Jun Mat Mat Mat Fac Sto Traps Triggered 5 | . 2 1 1 1 . Indirectly . | . . . . . . Trap Hack Attempts . | . . . . . . Triggered . | . . . . . . Disarmed . | . . . . . . Reprogrammed . | . . . . . . Reused . | . . . . . . Traps Extracted . | . . . . . . Installed . | . . . . . . Triggered . | . . . . . . Machines | -11 -10 -9 -8 -7 -7 ---------- Run | Jun Mat Mat Mat Fac Sto Machines Disabled 3 | . 3 . . . . Max in Single Turn 2 | . 2 . . . . Machines Repaired . | . . . . . . Machines Sabotaged . | . . . . . . Overloaded Fab Kills . | . . . . . . Hacking | -11 -10 -9 -8 -7 -7 --------- Run | Jun Mat Mat Mat Fac Sto Machines Accessed 6 | . . 3 1 2 . Terminals 4 | . . 2 1 1 . Fabricators . | . . . . . . Repair Stations . | . . . . . . Recycling Units . | . . . . . . Scanalyzers 2 | . . 1 . 1 . Garrison Access . | . . . . . . Total Hacks 28 | . . 21 4 3 . Successful 23 | . . 18 2 3 . Failed 5 | . . 3 2 . . Catastrophic 1 | . . . 1 . . Database Lockouts . | . . . . . . Manual 3 | . . . 3 . . Terminals 11 | . . 6 4 1 . Fabricators . | . . . . . . Repair Stations . | . . . . . . Recycling Units . | . . . . . . Scanalyzers 17 | . . 15 . 2 . Garrison Access . | . . . . . . Terminal Hacks 6 | . . 4 1 1 . Robot Analysis 1 | . . . 1 . . Open DSF 1 | . . . . 1 . Locate Traps 1 | . . 1 . . . Surveillance Status 1 | . . 1 . . . Zone Layout 2 | . . 2 . . . Fabricator Hacks . | . . . . . . Repair Station Hacks . | . . . . . . Recycling Unit Hacks . | . . . . . . Scanalyzer 16 | . . 14 . 2 . Insert Component 8 | . . 7 . 1 . Analyze 8 | . . 7 . 1 . Garrison Access Hacks . | . . . . . . Unauthorized Hacks 1 | . . . 1 . . Terminals 1 | . . . 1 . . Assimilate 1 | . . . 1 . . Fabricators . | . . . . . . Repair Stations . | . . . . . . Recycling Units . | . . . . . . Scanalyzers . | . . . . . . Garrison Access . | . . . . . . Data Cores Recovered 1 | . . 1 . . . Used 1 | . . 1 . . . Hacking Detections 6 | . . 3 1 2 . Full Trace Events 1 | . . 1 . . . Feedback Events . | . . . . . . Feedback Blocked . | . . . . . . Robot Schematics Acquired . | . . . . . . Robots Built . | . . . . . . Authchips . | . . . . . . Time . | . . . . . . Total Robot Build Rating . | . . . . . . Part Schematics Acquired 6 | . . 5 . 1 . Parts Built . | . . . . . . Authchips . | . . . . . . Time . | . . . . . . Total Part Build Rating . | . . . . . . Parts Repaired . | . . . . . . Time . | . . . . . . Parts Recycled . | . . . . . . Recycled Matter . | . . . . . . Retrieved Matter . | . . . . . . Retrieved Components . | . . . . . . Parts Scanalyzed 6 | . . 5 . 1 . Part Schematics Acquired 6 | . . 5 . 1 . Parts Damaged . | . . . . . . Bothacking | -11 -10 -9 -8 -7 -7 ------------ Run | Jun Mat Mat Mat Fac Sto Used RIF Installer . | . . . . . . Robots Hacked . | . . . . . . Non-combat . | . . . . . . Combat . | . . . . . . Robot Hacks Applied . | . . . . . . Relay Couplers Released . | . . . . . . Fabnet Peak Effective % . | . . . . . . Robots Rewired . | . . . . . . Allies Hacked . | . . . . . . Hacks Repelled . | . . . . . . Allies | -11 -10 -9 -8 -7 -7 -------- Run | Jun Mat Mat Mat Fac Sto Total Allies 1 | . . . 1 . . Largest Group 1 | . . . 1 . . Highest-Rated Group 10 | . . . 10 . . Highest-Rated Ally 10 | . . . 10 . . Total Orders . | . . . . . . Ally Attacks . | . . . . . . Total Damage . | . . . . . . Kills . | . . . . . . Allies Corrupted . | . . . . . . Allies Melted . | . . . . . . Intel | -11 -10 -9 -8 -7 -7 ------- Run | Jun Mat Mat Mat Fac Sto Robot Analysis Total 1 | . . . 1 . . Derelict Logs Recovered . | . . . . . . Drone Launches . | . . . . . . Drone Recoveries . | . . . . . . Exploration | -11 -10 -9 -8 -7 -7 ------------- Run | Jun Mat Mat Mat Fac Sto Turns Passed 3724 | 8 1737 1249 368 299 63 Spaces Moved 3109 | 7 862 762 717 667 94 Core 67 | . . . . . 67 Treads . | . . . . . . Legs 692 | 7 685 . . . . Wheels 652 | . 177 475 . . . Hover . | . . . . . . Flight 1698 | . . 287 717 667 27 Fastest Speed 29 | 120 120 32 29 31 31 Average Speed 89 | 120 171 104 31 32 44 Slowest Speed 435 | 120 260 435 40 34 50 Overloaded Moves . | . . . . . . Propulsion Burnouts . | . . . . . . Robots Hopped 22 | . . . 17 5 . Cave-ins Triggered . | . . . . . . Exploration Rate (%) 44 | 2 92 49 71 22 32 Regions Visited 5 Branch Regions 1 Pre-discovered Areas . | . . . . . . Known Exits Taken 1 | . . . . 1 . Unknown Exits Taken 4 | 1 1 1 1 . . Scrap Searched . | . . . . . . Spaces Dug 14 | . . 9 2 1 2 Terrain Destroyed 42 | . 27 9 3 1 2 Melee 14 | . . 9 2 1 2 Projectile . | . . . . . . AOE 27 | . 27 . . . . Terrain Rammed 1 | . . . 1 . . Walls Destroyed 1 | . . . 1 . . Machines Disabled . | . . . . . . Actions | -11 -10 -9 -8 -7 -7 --------- Run | Jun Mat Mat Mat Fac Sto Total 3747 | 6 1020 1083 791 733 114 Wait 299 | . 65 191 6 35 2 Move 3060 | 6 861 761 682 656 94 Hop 22 | . . . 17 5 . Pick Up 47 | . 13 16 13 4 1 Fast Attach 33 | . 3 12 15 3 . Attach 20 | . 1 9 8 2 . Detach 10 | . . 3 6 1 . Swap 28 | . 13 8 4 3 . Drop 38 | . 13 10 11 . 4 Fire 104 | . 51 53 . . . Melee 56 | . . 20 28 6 2 Ram 12 | . . . 1 . 11 Kick . | . . . . . . Crush . | . . . . . . Escape Stasis 18 | . . . . 18 . Rewire . | . . . . . . Trap . | . . . . . . Miscellaneous . | . . . . . . Route ------- -11/Junkyard -10/Materials (discovered 3 exits: *Mat x2 / [*Min]) -9/Materials (discovered 2 exits: *Mat / [*Min]) -8/Materials -7/Factory -7/Storage History --------- Turn | Location | Event 1 | -11/Junkyard | Discovered new exit (range 2) 9 | -11/Junkyard | Entered Materials 153 | -10/Materials | Discovered new exit (range 11) 279 | -10/Materials | Core integrity fell below 50% 320 | -10/Materials | Build established: Mutant 397 | -10/Materials | Discovered new exit (range 12) 1014 | -10/Materials | Discovered new exit (range 3) 1746 | -10/Materials | Entered another Materials area 1746 | -9/Materials | Evolved 2 slots: Utility x2 1963 | -9/Materials | Lost 3 parts (1p1n1u) 2333 | -9/Materials | Build established: Scavenger-Mutant 2448 | -9/Materials | Core integrity fell below 50% 2497 | -9/Materials | Discovered new exit (range 15) 2586 | -9/Materials | Discovered new exit (range 16) 2593 | -9/Materials | Lost 3 parts (1p1n1u) 2995 | -9/Materials | Entered another Materials area 2995 | -8/Materials | Evolved 2 slots: Propulsion x1, Utility x1 3097 | -8/Materials | System corruption reached 10% 3134 | -8/Materials | Lost 7 parts (1p3n3u) 3213 | -8/Materials | Core integrity fell below 50% 3247 | -8/Materials | Core integrity fell below 20% 3277 | -8/Materials | Lost 5 parts (5n) 3340 | -8/Materials | Discovered new exit (range 11) 3363 | -8/Materials | Entered Factory 3363 | -7/Factory | Evolved 2 slots: Power x1, Propulsion x1 3624 | -7/Factory | Discovered new exit (range 9) 3661 | -7/Factory | Identified exit to Storage 3662 | -7/Factory | Entered Storage 3710 | -7/Storage | Core integrity fell below 50% 3720 | -7/Storage | Core integrity fell below 20% 3725 | -7/Storage | Destroyed by S-27 Virus with Autogun Last Messages --------------- 03692_ Slammed into Y-54 Guardian. 03695_ Katana destroyed. 03698_ K-01 Serf collects debris. 03703_ K-01 Serf cleans the Transport Mainframe. 03707_ Mic. Nuclear Core destroyed. 03707_ Imp. Sensor Array destroyed. 03708_ Slammed into Y-54 Guardian. 03710_ K-01 Serf cleans the Transport Mainframe. 03713_ Slammed into R-06 Scavenger. 03714_ Slammed into W-25 Informer. 03715_ Imp. Signal Interpreter destroyed. 03715_ Slammed into W-25 Informer. 03715_ Weight Redist. System destroyed. 03717_ Slammed into S-27 Virus. 03718_ Imp. Melee Analysis Suite destroyed. 03718_ System corrupted by crushing effect (+1). 03719_ Slammed into S-27 Virus. 03720_ Slammed into Y-54 Guardian. 03722_ Slammed into S-27 Virus. 03724_ S-27 Virus destroyed. Map ----- +----------------------------------------------------+ | ?????????????###"""#??# """ #???????????????? | | ???????????????#####??# """ #???????????????? | | ??????????????????????# #???????????????? | | ??????????????????????# """ #???????????????? | | ??????????????????????# """ #???????????????? | | ??????????????????????# """ ##??????????????? | | ??????????????????????# #??????????????? | | ??????????????????????#####/#####??????????????? | | ????????????????????????# ###########??????? | | ????????????????????????# #??????? | | ????????????????????????# #??????? | | ????????????????????????# % #??????? | | ????????????????????????# ####/######??????? | | ????????????????????????###%### ##?????? | | ??????????????????????????#%#?# #?????? | | ??????????????????????????#%#?# """" ##?????? | | ??????????????????????????# #?# """" #??????? | | ??????????????????????????#%#?# """" #??????? | | ??????????????????????????#%#?# """" #??????? | | ??????????????????????????#%#?# #??????? | | ????????????????????#?????#Y#?# #??????? | | ????????????????????# ?####/#############??????? | | ????????????????????# ?# sg% #??????????????? | | ????????????????????# # ss= #??????????????? | | ????????????????????# # s """"#??????????????? | | ????????????????????+ @ """"#??????????????? | | ????????????????????# # """"#??????????????? | | ????????????????????#r # """"#??????????????? | | ??????????????????? ?# #??????????????? | | ?????????????????? ?# #??????????????? | | ?????????????????T###??# Y #??????????????? | | ????????????????#??????######## #??????????????? | | ???????????????????????????????##??????????????? | | ???????????????????????????????????????????????? | | ???????????????????????????????????????????????? | | ???????????????????????????????????????????????? | | ???????????????????????????????????????????????? | | ???????????????????????????????????????????????? | | ???????????????????????????????????????????????? | | ???????????????????????????????????????????????? | | ???????????????????????????????????????????????? | | ???????????????????????????????????????????????? | | ???????????????????????????????????????????????? | | ???????????????????????????????????????????????? | | ???????????????????????????????????????????????? | | ???????????????????????????????????????????????? | | | | | | | | | +----------------------------------------------------+ Best States ------------- Heat Dissipation 34 Energy Generation 20 Energy Capacity 275 Matter Stores 300 Matter Capacity 300 Sight Range 16 Robot Scan Range 15 Terrain Scan Density 10 ECM Strength 1 Additional Mass Support 9 Armor Coverage 150 Evasion (%) 64 Targeting Accuracy 8 Melee Accuracy 24 Item Schematics ----------------- Shield Generator | -9/Materials | Scanalyzed Lgt. Nuclear Core | -9/Materials | Scanalyzed Med. Storage Unit | -9/Materials | Scanalyzed Weight Redist. System | -9/Materials | Scanalyzed Hammer | -9/Materials | Scanalyzed Hacking Suite | -7/Factory | Scanalyzed Robot Schematics ------------------ None Fabricated ------------ Nothing Alien Tech Used ----------------- None Achievements -------------- None Challenges ------------ None Game ------ Seed MagneticPotentialAirjet Manual? 0 Play Time 01:02:06 Cumulative 150.0 hours Start 2023.08.02 @ 17:08:33 End 2023.08.02 @ 18:44:36 Sessions 1 Manual Loads 0 Difficulty Rogue Special Mode None Game No. 133 Rogue 133 Adventurer 0 Explorer 0 Win Type - Total 2 Types 2/0/0/0/0/0/0/0/0 Lore% 53 Gallery% 59 Achievement% 45 Wizard Run 0 Options --------- ASCII 0 Keyboard 1 Movement Numpad Keybinds 0 Fullscreen 2 Font 24/Cog Map View 76x50 Tactical HUD 1 Map Filters NONE Filters BRIGHTNESS(125)|SATURATION(100) Steam 1 RUN: ca56526a-ef49-49de-a373-26563bed6e33